[Event "GrandPrix_29.05"]
[Site "Chess.com"]
[Date "2020.05.29"]
[Round "3"]
[White "PavelShkapenko"]
[Black "Yuri202062"]
[Result "1-0"]
[WhiteElo "2278"]
[BlackElo "2121"]
[TimeControl "600+2"]
[EndTime "10:24:41 PDT"]
[Termination "PavelShkapenko won on time"]

1. e4 {[%clk 0:10:00.6]} 1... c5 {[%clk 0:10:00.5]} 2. c3 {[%clk 0:10:01.2]}
2... Nf6 {[%clk 0:10:00.5]} 3. e5 {[%clk 0:10:02.2]} 3... Nd5 {[%clk 0:10:01.6]}
4. d4 {[%clk 0:10:03.8]} 4... cxd4 {[%clk 0:10:01.8]} 5. cxd4 {[%clk 0:10:05.4]}
5... d6 {[%clk 0:10:02.3]} 6. Nf3 {[%clk 0:10:05.9]} 6... e6 {[%clk 0:09:58]} 7.
Nc3 {[%clk 0:10:06.4]} 7... Nxc3 {[%clk 0:09:57.5]} 8. bxc3 {[%clk 0:10:08]}
8... Qc7 {[%clk 0:09:58]} 9. Bd2 {[%clk 0:10:09.2]} 9... Nd7 {[%clk 0:09:58.4]}
10. Ng5 {[%clk 0:10:10.2]} 10... Be7 {[%clk 0:08:11.7]} 11. Qh5 {[%clk
0:08:58.8]} 11... Bxg5 {[%clk 0:08:00.5]} 12. Qxg5 {[%clk 0:09:00]} 12... O-O
{[%clk 0:07:55.6]} 13. f4 {[%clk 0:08:37.2]} 13... b6 {[%clk 0:07:28.1]} 14. Bd3
{[%clk 0:08:35]} 14... Bb7 {[%clk 0:07:29.1]} 15. O-O {[%clk 0:08:34.9]} 15...
f5 {[%clk 0:06:04.8]} 16. exf6 {[%clk 0:08:33.9]} 16... Nxf6 {[%clk 0:05:59.2]}
17. Rae1 {[%clk 0:08:33.1]} 17... Rae8 {[%clk 0:05:57.6]} 18. Re3 {[%clk
0:08:04.1]} 18... Bd5 {[%clk 0:05:54.1]} 19. Bb1 {[%clk 0:06:37.5]} 19... b5
{[%clk 0:05:02.1]} 20. Rfe1 {[%clk 0:06:32.6]} 20... a6 {[%clk 0:04:45.3]} 21.
Rh3 {[%clk 0:06:32.9]} 21... Qc6 {[%clk 0:04:37.9]} 22. Qh4 {[%clk 0:05:41.8]}
22... g6 {[%clk 0:02:36.1]} 23. Re2 {[%clk 0:05:24.1]} 23... Re7 {[%clk
0:02:20.7]} 24. f5 {[%clk 0:04:56]} 24... gxf5 {[%clk 0:02:19.1]} 25. Bxf5
{[%clk 0:04:53]} 25... Rg7 {[%clk 0:02:10.3]} 26. Bd3 {[%clk 0:03:22.9]} 26...
Bxg2 {[%clk 0:01:04.1]} 27. Rg3 {[%clk 0:03:23.4]} 27... Bf3 {[%clk 0:01:05.2]}
28. Rxg7+ {[%clk 0:02:56.7]} 28... Kxg7 {[%clk 0:01:05.1]} 29. Bh6+ {[%clk
0:02:58.2]} 29... Kf7 {[%clk 0:01:02.2]} 30. Bxf8 {[%clk 0:02:56.3]} 30... Bxe2
{[%clk 0:01:01.2]} 31. Bxe2 {[%clk 0:02:57.5]} 31... Qxc3 {[%clk 0:00:08.4]} 32.
Bxd6 {[%clk 0:02:25.5]} 32... Qe3+ {[%clk 0:00:03.6]} 33. Kf1 {[%clk 0:02:26.6]}
1-0

[Event "GrandPrix_29.05"]
[Site "Chess.com"]
[Date "2020.05.29"]
[Round "3"]
[White "Alex_Krayz"]
[Black "jacky72"]
[Result "0-1"]
[WhiteElo "2161"]
[BlackElo "2241"]
[TimeControl "600+2"]
[EndTime "10:24:48 PDT"]
[Termination "jacky72 won on time"]

1. e4 {[%clk 0:10:01.9]} 1... e5 {[%clk 0:09:58.4]} 2. Nf3 {[%clk 0:10:01.5]}
2... Nc6 {[%clk 0:09:51.8]} 3. Bb5 {[%clk 0:10:00.7]} 3... a6 {[%clk 0:09:41.5]}
4. Ba4 {[%clk 0:10:00.2]} 4... d6 {[%clk 0:09:41.8]} 5. c3 {[%clk 0:09:50.1]}
5... g6 {[%clk 0:09:37.2]} 6. O-O {[%clk 0:09:45.2]} 6... Bg7 {[%clk 0:09:32.3]}
7. h3 {[%clk 0:09:32.4]} 7... Bd7 {[%clk 0:09:31.5]} 8. d4 {[%clk 0:09:29]} 8...
Nf6 {[%clk 0:09:31.1]} 9. Re1 {[%clk 0:09:26.9]} 9... O-O {[%clk 0:09:30.4]} 10.
Nbd2 {[%clk 0:09:05.8]} 10... Re8 {[%clk 0:09:28.5]} 11. Bb3 {[%clk 0:08:46.7]}
11... Qe7 {[%clk 0:09:17.5]} 12. Nf1 {[%clk 0:08:21]} 12... Qf8 {[%clk
0:08:49.1]} 13. Ng3 {[%clk 0:08:18.3]} 13... Rad8 {[%clk 0:08:45.5]} 14. Ng5
{[%clk 0:06:55]} 14... Re7 {[%clk 0:08:40.7]} 15. f4 {[%clk 0:06:48.4]} 15... h6
{[%clk 0:08:32.6]} 16. Nf3 {[%clk 0:06:46.7]} 16... exd4 {[%clk 0:08:25.9]} 17.
cxd4 {[%clk 0:06:44.5]} 17... Bc8 {[%clk 0:08:16.9]} 18. Bd2 {[%clk 0:06:25.8]}
18... Qe8 {[%clk 0:08:12.4]} 19. e5 {[%clk 0:05:58.5]} 19... dxe5 {[%clk
0:08:11.6]} 20. fxe5 {[%clk 0:05:25.9]} 20... Nd5 {[%clk 0:07:59.8]} 21. Qc1
{[%clk 0:04:14.4]} 21... Kh7 {[%clk 0:07:56.5]} 22. Qc5 {[%clk 0:04:05.8]} 22...
Be6 {[%clk 0:07:42.1]} 23. Rac1 {[%clk 0:03:58.3]} 23... Red7 {[%clk 0:07:41.7]}
24. Ne4 {[%clk 0:03:54.6]} 24... Nce7 {[%clk 0:07:23.3]} 25. Ba4 {[%clk
0:03:08]} 25... b5 {[%clk 0:07:14.9]} 26. Bb3 {[%clk 0:03:05.7]} 26... Nf5
{[%clk 0:07:14.9]} 27. Qc2 {[%clk 0:02:52.9]} 27... Nb6 {[%clk 0:07:00.4]} 28.
Nf6+ {[%clk 0:02:45.6]} 28... Bxf6 {[%clk 0:06:59.8]} 29. exf6 {[%clk
0:02:45.9]} 29... Nc4 {[%clk 0:06:38.3]} 30. Bxc4 {[%clk 0:02:10.8]} 30... bxc4
{[%clk 0:06:40.2]} 31. Bc3 {[%clk 0:02:11.2]} 31... Qh8 {[%clk 0:06:03.3]} 32.
d5 {[%clk 0:01:51.2]} 32... Rxd5 {[%clk 0:05:53.9]} 33. g4 {[%clk 0:01:35.8]}
33... Nd6 {[%clk 0:05:36]} 34. Qf2 {[%clk 0:01:23.6]} 34... Nb5 {[%clk
0:05:32.7]} 35. Be5 {[%clk 0:00:55.7]} 35... Rd3 {[%clk 0:05:20.5]} 36. Rf1
{[%clk 0:00:40.9]} 36... Qf8 {[%clk 0:05:07.7]} 37. Rce1 {[%clk 0:00:30.3]}
37... R8d5 {[%clk 0:04:35.8]} 38. Kg2 {[%clk 0:00:20.9]} 38... c3 {[%clk
0:04:06.3]} 39. Qh4 {[%clk 0:00:19.1]} 39... Rxf3 {[%clk 0:03:50.5]} 40. Rxf3
{[%clk 0:00:15.8]} 40... c2 {[%clk 0:03:39.9]} 41. Rf2 {[%clk 0:00:15.3]} 41...
Qc5 {[%clk 0:03:35.5]} 42. Rc1 {[%clk 0:00:13.1]} 42... Rxe5 {[%clk 0:03:32.3]}
43. Rcxc2 {[%clk 0:00:13.2]} 43... Bd5+ {[%clk 0:03:30]} 44. Kh2 {[%clk
0:00:13.3]} 44... Qd6 {[%clk 0:03:26.6]} 45. Qg3 {[%clk 0:00:14]} 45... Nd4
{[%clk 0:03:24.9]} 46. Rc1 {[%clk 0:00:07.8]} 46... Ne2 {[%clk 0:03:22.7]} 47.
Rxe2 {[%clk 0:00:04.5]} 47... Rxe2+ {[%clk 0:03:24.6]} 0-1

[Event "GrandPrix_29.05"]
[Site "Chess.com"]
[Date "2020.05.29"]
[Round "3"]
[White "Olghita64"]
[Black "BashirliN"]
[Result "0-1"]
[WhiteElo "1964"]
[BlackElo "2184"]
[TimeControl "600+2"]
[EndTime "10:24:49 PDT"]
[Termination "BashirliN won by resignation"]

1. Nf3 {[%clk 0:09:53.7]} 1... Nf6 {[%clk 0:09:59.7]} 2. c4 {[%clk 0:09:52.3]}
2... e6 {[%clk 0:09:59.5]} 3. g3 {[%clk 0:09:52.9]} 3... b6 {[%clk 0:09:50.3]}
4. Bg2 {[%clk 0:09:52.5]} 4... Bb7 {[%clk 0:09:44.9]} 5. O-O {[%clk 0:09:52.4]}
5... g6 {[%clk 0:09:45.8]} 6. Nc3 {[%clk 0:09:52.2]} 6... Bg7 {[%clk 0:09:47.3]}
7. Re1 {[%clk 0:09:45.8]} 7... O-O {[%clk 0:09:47.1]} 8. e4 {[%clk 0:09:46.2]}
8... d6 {[%clk 0:09:43.4]} 9. d4 {[%clk 0:09:45.7]} 9... Nbd7 {[%clk 0:09:43.2]}
10. Bg5 {[%clk 0:09:12.9]} 10... h6 {[%clk 0:09:42.1]} 11. Bd2 {[%clk
0:09:13.7]} 11... c5 {[%clk 0:09:38.2]} 12. d5 {[%clk 0:09:13.4]} 12... exd5
{[%clk 0:09:31]} 13. exd5 {[%clk 0:09:09.7]} 13... a6 {[%clk 0:09:31.9]} 14. a4
{[%clk 0:09:07]} 14... Qc7 {[%clk 0:09:26.7]} 15. h3 {[%clk 0:08:05]} 15... Rae8
{[%clk 0:09:25.3]} 16. Qc2 {[%clk 0:08:05.3]} 16... Bc8 {[%clk 0:08:45.9]} 17.
Bf1 {[%clk 0:08:02.3]} 17... Nh7 {[%clk 0:08:00.4]} 18. Nh4 {[%clk 0:07:30.9]}
18... Ndf6 {[%clk 0:04:59.8]} 19. Kh2 {[%clk 0:06:56.9]} 19... Qd7 {[%clk
0:04:51.6]} 20. f4 {[%clk 0:05:58.3]} 20... Rxe1 {[%clk 0:04:39.8]} 21. Rxe1
{[%clk 0:05:54]} 21... Re8 {[%clk 0:04:41.7]} 22. a5 {[%clk 0:05:06]} 22... Rxe1
{[%clk 0:04:19.4]} 23. Bxe1 {[%clk 0:05:05.3]} 23... bxa5 {[%clk 0:04:19]} 24.
Na4 {[%clk 0:04:19.4]} 24... g5 {[%clk 0:04:10.9]} 25. fxg5 {[%clk 0:04:00]}
25... hxg5 {[%clk 0:03:55.9]} 26. Nf3 {[%clk 0:03:27]} 26... g4 {[%clk
0:03:54.8]} 27. Ng1 {[%clk 0:03:11.1]} 27... Ng5 {[%clk 0:03:39.8]} 28. Nb6
{[%clk 0:03:00.1]} 28... Qe8 {[%clk 0:03:36.4]} 29. Bxa5 {[%clk 0:02:44.8]}
29... gxh3 {[%clk 0:03:24.4]} 30. Nxc8 {[%clk 0:02:43.4]} 30... Qxc8 {[%clk
0:03:13.6]} 31. Be2 {[%clk 0:02:31.9]} 31... Ng4+ {[%clk 0:03:10.9]} 32. Bxg4
{[%clk 0:02:31.8]} 32... Qxg4 {[%clk 0:03:12.8]} 33. Bc3 {[%clk 0:01:52.1]}
33... Ne4 {[%clk 0:01:50.1]} 34. Ne2 {[%clk 0:01:32.5]} 34... Qf3 {[%clk
0:01:38.9]} 35. Kxh3 {[%clk 0:01:21.8]} 35... Nf2+ {[%clk 0:01:21.2]} 0-1

[Event "GrandPrix_29.05"]
[Site "Chess.com"]
[Date "2020.05.29"]
[Round "3"]
[White "Dolphin_2010"]
[Black "hubertsmazak"]
[Result "0-1"]
[WhiteElo "2009"]
[BlackElo "2326"]
[TimeControl "600+2"]
[EndTime "10:24:52 PDT"]
[Termination "hubertsmazak won by checkmate"]

1. e4 {[%clk 0:10:01.9]} 1... e5 {[%clk 0:09:59.9]} 2. Nf3 {[%clk 0:09:59.7]}
2... Nc6 {[%clk 0:10:00.1]} 3. d4 {[%clk 0:09:59.8]} 3... exd4 {[%clk
0:09:59.3]} 4. Bc4 {[%clk 0:09:59]} 4... Nf6 {[%clk 0:09:57.4]} 5. e5 {[%clk
0:09:59.6]} 5... d5 {[%clk 0:09:55.1]} 6. Bb5 {[%clk 0:09:59.6]} 6... Ne4 {[%clk
0:09:55]} 7. Nxd4 {[%clk 0:09:59.3]} 7... Bc5 {[%clk 0:09:55.2]} 8. Be3 {[%clk
0:09:58.9]} 8... Bd7 {[%clk 0:09:53.3]} 9. Bxc6 {[%clk 0:09:59]} 9... bxc6
{[%clk 0:09:53.8]} 10. O-O {[%clk 0:09:59.8]} 10... Bb6 {[%clk 0:09:54.5]} 11.
f3 {[%clk 0:10:00]} 11... Nc5 {[%clk 0:09:51.5]} 12. f4 {[%clk 0:09:59.5]} 12...
Ne6 {[%clk 0:09:47.8]} 13. f5 {[%clk 0:09:48.9]} 13... Nxd4 {[%clk 0:09:41.2]}
14. Bxd4 {[%clk 0:09:49.8]} 14... Qh4 {[%clk 0:09:37.8]} 15. Bxb6 {[%clk
0:09:46.3]} 15... axb6 {[%clk 0:09:38.6]} 16. Nc3 {[%clk 0:09:07.7]} 16... O-O
{[%clk 0:09:27.5]} 17. f6 {[%clk 0:08:58.3]} 17... Rfe8 {[%clk 0:09:19.7]} 18.
fxg7 {[%clk 0:08:43.2]} 18... Rxe5 {[%clk 0:09:16.9]} 19. Qf3 {[%clk 0:08:03.4]}
19... Bf5 {[%clk 0:09:15.7]} 20. Ne2 {[%clk 0:06:02.6]} 20... Rae8 {[%clk
0:09:12.5]} 21. Nf4 {[%clk 0:05:40.8]} 21... Bxc2 {[%clk 0:07:27.5]} 22. Qc3
{[%clk 0:02:29.3]} 22... Ba4 {[%clk 0:06:17]} 23. b3 {[%clk 0:02:19.5]} 23...
Bb5 {[%clk 0:06:16.3]} 24. Rf2 {[%clk 0:01:58]} 24... Re3 {[%clk 0:05:41.1]} 25.
Qd2 {[%clk 0:01:27.4]} 25... Qf6 {[%clk 0:05:41.7]} 26. Rc1 {[%clk 0:01:20.5]}
26... Qe5 {[%clk 0:05:34.6]} 27. h3 {[%clk 0:00:33.7]} 27... d4 {[%clk
0:05:09.9]} 28. a4 {[%clk 0:00:20.6]} 28... Ba6 {[%clk 0:05:09.1]} 29. Rxc6
{[%clk 0:00:08.3]} 29... Rxb3 {[%clk 0:04:55.1]} 30. Kh2 {[%clk 0:00:06.5]}
30... Re3 {[%clk 0:04:49.7]} 31. Rh6 {[%clk 0:00:04.5]} 31... d3 {[%clk
0:04:44.5]} 32. g3 {[%clk 0:00:03.8]} 32... Re2 {[%clk 0:04:35.4]} 33. Nxe2
{[%clk 0:00:04.1]} 33... Qxe2 {[%clk 0:04:15.2]} 34. Rf6 {[%clk 0:00:03.9]}
34... Qxd2 {[%clk 0:04:03.8]} 35. Rxd2 {[%clk 0:00:05.8]} 35... Re2+ {[%clk
0:03:48.9]} 36. Rf2 {[%clk 0:00:05.9]} 36... Rxf2+ {[%clk 0:03:32.8]} 37. Rxf2
{[%clk 0:00:06.1]} 37... c5 {[%clk 0:03:34.7]} 38. Kg2 {[%clk 0:00:04.5]} 38...
c4 {[%clk 0:03:35.9]} 39. Rf4 {[%clk 0:00:03.5]} 39... c3 {[%clk 0:03:30.6]} 40.
Rd4 {[%clk 0:00:02]} 40... c2 {[%clk 0:03:29.6]} 41. Rd8+ {[%clk 0:00:03.9]}
41... Kxg7 {[%clk 0:03:30.6]} 42. h4 {[%clk 0:00:03.9]} 42... c1=Q {[%clk
0:03:31]} 43. Kh3 {[%clk 0:00:05.8]} 43... Qh1+ {[%clk 0:03:28.7]} 44. Kg4
{[%clk 0:00:06.6]} 44... Qe4+ {[%clk 0:03:29]} 45. Kh3 {[%clk 0:00:07.4]} 45...
Bb7 {[%clk 0:03:28.2]} 46. a5 {[%clk 0:00:05.8]} 46... Bd5 {[%clk 0:03:28.8]}
47. axb6 {[%clk 0:00:05.2]} 47... Be6+ {[%clk 0:03:28.6]} 48. Kh2 {[%clk
0:00:05.7]} 48... Qe2+ {[%clk 0:03:29.5]} 49. Kg1 {[%clk 0:00:04.1]} 49... Bh3
{[%clk 0:03:30.6]} 50. Rg8+ {[%clk 0:00:05.4]} 50... Kxg8 {[%clk 0:03:31.4]} 51.
b7 {[%clk 0:00:07.3]} 51... Kg7 {[%clk 0:03:31.1]} 52. b8=Q {[%clk 0:00:09.2]}
52... Qg2# {[%clk 0:03:31.5]} 0-1

[Event "GrandPrix_29.05"]
[Site "Chess.com"]
[Date "2020.05.29"]
[Round "3"]
[White "moro182"]
[Black "Arm-Akiba"]
[Result "0-1"]
[WhiteElo "2528"]
[BlackElo "2863"]
[TimeControl "600+2"]
[EndTime "10:24:57 PDT"]
[Termination "Arm-Akiba won by resignation"]

1. d4 {[%clk 0:10:01.9]} 1... Nf6 {[%clk 0:09:59.5]} 2. c4 {[%clk 0:10:02.1]}
2... e6 {[%clk 0:10:00.2]} 3. Nc3 {[%clk 0:10:02.5]} 3... Bb4 {[%clk 0:10:00.5]}
4. e3 {[%clk 0:10:03.7]} 4... O-O {[%clk 0:10:00.4]} 5. Bd3 {[%clk 0:10:04.6]}
5... d5 {[%clk 0:09:59.5]} 6. Nf3 {[%clk 0:10:05.8]} 6... dxc4 {[%clk
0:09:58.6]} 7. Bxc4 {[%clk 0:10:06.9]} 7... c5 {[%clk 0:09:59.5]} 8. O-O {[%clk
0:10:06.5]} 8... Bd7 {[%clk 0:09:56.9]} 9. a3 {[%clk 0:09:57.3]} 9... Ba5 {[%clk
0:09:41.2]} 10. Qe2 {[%clk 0:09:18.5]} 10... cxd4 {[%clk 0:09:32.5]} 11. exd4
{[%clk 0:09:20.4]} 11... Bc6 {[%clk 0:09:33.3]} 12. Rd1 {[%clk 0:08:23.9]} 12...
Bd5 {[%clk 0:09:18.1]} 13. Bg5 {[%clk 0:07:22]} 13... Bxc4 {[%clk 0:09:01.2]}
14. Qxc4 {[%clk 0:07:23.9]} 14... Bxc3 {[%clk 0:09:02.1]} 15. bxc3 {[%clk
0:06:58]} 15... Qd5 {[%clk 0:08:58.1]} 16. Qd3 {[%clk 0:05:44]} 16... Rc8 {[%clk
0:08:50.1]} 17. Bxf6 {[%clk 0:04:34.1]} 17... gxf6 {[%clk 0:08:52]} 18. Nd2
{[%clk 0:04:35.5]} 18... Nd7 {[%clk 0:07:57.9]} 19. c4 {[%clk 0:04:20.8]} 19...
Qf5 {[%clk 0:07:58.5]} 20. Qxf5 {[%clk 0:04:16.4]} 20... exf5 {[%clk 0:08:00.4]}
21. Rab1 {[%clk 0:04:16.9]} 21... Rc7 {[%clk 0:07:53.6]} 22. Rb5 {[%clk
0:04:15.9]} 22... Nb6 {[%clk 0:07:52]} 23. Rxf5 {[%clk 0:03:42]} 23... Nxc4
{[%clk 0:07:50.7]} 24. Nxc4 {[%clk 0:02:21.5]} 24... Rxc4 {[%clk 0:07:52.6]} 25.
h4 {[%clk 0:02:08.6]} 25... Rd8 {[%clk 0:07:47]} 26. Rf4 {[%clk 0:02:03.3]}
26... Rd5 {[%clk 0:07:36]} 27. Rd3 {[%clk 0:02:00.8]} 27... f5 {[%clk 0:07:30]}
28. Kh2 {[%clk 0:01:44.2]} 28... b5 {[%clk 0:07:22.4]} 29. Kg3 {[%clk
0:01:32.7]} 29... a5 {[%clk 0:07:22.3]} 30. Kf3 {[%clk 0:01:33.5]} 30... a4
{[%clk 0:06:57]} 31. g4 {[%clk 0:01:15.5]} 31... b4 {[%clk 0:06:43.9]} 32. axb4
{[%clk 0:01:10.1]} 32... Rxb4 {[%clk 0:06:45.1]} 33. Rxf5 {[%clk 0:01:02.4]}
33... Rxf5+ {[%clk 0:04:20.9]} 34. gxf5 {[%clk 0:01:04.3]} 34... Rb3 {[%clk
0:04:22.3]} 35. Ke4 {[%clk 0:00:38.3]} 35... Rxd3 {[%clk 0:04:22.5]} 36. Kxd3
{[%clk 0:00:40.2]} 36... Kg7 {[%clk 0:04:11.7]} 37. f4 {[%clk 0:00:18.6]} 37...
Kf6 {[%clk 0:03:55.7]} 38. Kc4 {[%clk 0:00:05.3]} 38... Kxf5 {[%clk 0:03:27.2]}
39. d5 {[%clk 0:00:03.6]} 39... Kf6 {[%clk 0:03:27.8]} 40. Kb4 {[%clk
0:00:04.2]} 40... Ke7 {[%clk 0:03:28.4]} 41. Kxa4 {[%clk 0:00:05.7]} 41... Kd6
{[%clk 0:03:29.6]} 42. Kb5 {[%clk 0:00:06.5]} 42... Kxd5 {[%clk 0:03:30.8]} 43.
h5 {[%clk 0:00:05.6]} 43... Ke4 {[%clk 0:03:00.2]} 44. Kc5 {[%clk 0:00:05.2]}
44... Kxf4 {[%clk 0:03:00.2]} 0-1

[Event "GrandPrix_29.05"]
[Site "Chess.com"]
[Date "2020.05.29"]
[Round "3"]
[White "Rikikits"]
[Black "nikosgal"]
[Result "1-0"]
[WhiteElo "2815"]
[BlackElo "2468"]
[TimeControl "600+2"]
[EndTime "10:24:58 PDT"]
[Termination "Rikikits won by resignation"]

1. e4 {[%clk 0:10:01.9]} 1... c5 {[%clk 0:09:54.9]} 2. Nc3 {[%clk 0:10:02.1]}
2... d6 {[%clk 0:09:55.1]} 3. d4 {[%clk 0:10:02.5]} 3... cxd4 {[%clk 0:09:54.5]}
4. Qxd4 {[%clk 0:10:04.4]} 4... a6 {[%clk 0:09:55.7]} 5. b3 {[%clk 0:09:48.5]}
5... Nc6 {[%clk 0:09:55.1]} 6. Qd2 {[%clk 0:09:49.5]} 6... Nf6 {[%clk
0:09:26.9]} 7. Bb2 {[%clk 0:09:49.1]} 7... e6 {[%clk 0:09:27.5]} 8. O-O-O {[%clk
0:09:47]} 8... Be7 {[%clk 0:09:27.7]} 9. Kb1 {[%clk 0:09:38.3]} 9... b5 {[%clk
0:09:26]} 10. f3 {[%clk 0:09:39.3]} 10... Bb7 {[%clk 0:09:04.6]} 11. g4 {[%clk
0:09:28.3]} 11... h6 {[%clk 0:09:05.4]} 12. h4 {[%clk 0:09:08.2]} 12... Qc7
{[%clk 0:08:12.7]} 13. Bh3 {[%clk 0:08:27.9]} 13... g5 {[%clk 0:06:43.9]} 14.
Nge2 {[%clk 0:07:58.1]} 14... Rg8 {[%clk 0:06:41.2]} 15. hxg5 {[%clk 0:06:54.7]}
15... hxg5 {[%clk 0:06:41.3]} 16. f4 {[%clk 0:06:56.1]} 16... gxf4 {[%clk
0:06:36.6]} 17. Qxf4 {[%clk 0:06:58]} 17... Ne5 {[%clk 0:06:35.4]} 18. g5 {[%clk
0:05:54.7]} 18... Nfd7 {[%clk 0:06:35.3]} 19. Rhg1 {[%clk 0:05:50.6]} 19... Nc5
{[%clk 0:05:59.8]} 20. a3 {[%clk 0:05:21.2]} 20... Rc8 {[%clk 0:05:33.7]} 21.
Nd4 {[%clk 0:05:18.8]} 21... Qb6 {[%clk 0:04:45.2]} 22. Rdf1 {[%clk 0:05:02.9]}
22... b4 {[%clk 0:04:13.7]} 23. axb4 {[%clk 0:04:46.1]} 23... Qxb4 {[%clk
0:04:14.1]} 24. g6 {[%clk 0:04:34.3]} 24... Rg7 {[%clk 0:03:56.4]} 25. Nd5
{[%clk 0:03:43.5]} 25... exd5 {[%clk 0:03:36.4]} 26. gxf7+ {[%clk 0:03:10.9]}
26... Rxf7 {[%clk 0:03:23.3]} 27. Qh6 {[%clk 0:02:50.4]} 27... Rxf1+ {[%clk
0:03:11.3]} 28. Rxf1 {[%clk 0:02:52.3]} 28... Kd8 {[%clk 0:03:05.9]} 29. Qg7
{[%clk 0:02:38.5]} 29... Qd2 {[%clk 0:02:02.9]} 30. b4 {[%clk 0:01:52.4]} 30...
Qxb4 {[%clk 0:01:05.7]} 31. Nf5 {[%clk 0:01:52.1]} 31... Nc6 {[%clk 0:01:06.8]}
32. Nxe7 {[%clk 0:01:49.9]} 32... Nxe7 {[%clk 0:01:08.1]} 33. Rf8+ {[%clk
0:01:50.4]} 33... Kc7 {[%clk 0:01:07]} 34. Qxe7+ {[%clk 0:01:51.8]} 34... Kb6
{[%clk 0:00:58]} 35. Bxc8 {[%clk 0:01:33.3]} 35... Nxe4 {[%clk 0:00:56.2]} 36.
Qxb7+ {[%clk 0:01:31.2]} 1-0

[Event "GrandPrix_29.05"]
[Site "Chess.com"]
[Date "2020.05.29"]
[Round "3"]
[White "Belka1989"]
[Black "Herracek"]
[Result "0-1"]
[WhiteElo "2209"]
[BlackElo "2364"]
[TimeControl "600+2"]
[EndTime "10:24:58 PDT"]
[Termination "Herracek won by resignation"]

1. d4 {[%clk 0:10:01.9]} 1... Nf6 {[%clk 0:10:00.6]} 2. Nf3 {[%clk 0:10:01.4]}
2... e6 {[%clk 0:10:01.6]} 3. Bf4 {[%clk 0:10:01.2]} 3... c5 {[%clk 0:10:02.5]}
4. e3 {[%clk 0:10:01.8]} 4... Qb6 {[%clk 0:10:03.6]} 5. Na3 {[%clk 0:10:01.5]}
5... cxd4 {[%clk 0:09:58.9]} 6. Nb5 {[%clk 0:09:43.1]} 6... Nd5 {[%clk
0:09:51.7]} 7. Qxd4 {[%clk 0:09:40.3]} 7... Qxd4 {[%clk 0:09:11.1]} 8. Nfxd4
{[%clk 0:09:42.2]} 8... Nxf4 {[%clk 0:09:06.7]} 9. Nc7+ {[%clk 0:08:58.2]} 9...
Kd8 {[%clk 0:09:07.2]} 10. Nxa8 {[%clk 0:08:59]} 10... Nd5 {[%clk 0:09:01.6]}
11. O-O-O {[%clk 0:08:39]} 11... Nc6 {[%clk 0:08:57.1]} 12. e4 {[%clk
0:06:39.8]} 12... Ndb4 {[%clk 0:08:11.1]} 13. a3 {[%clk 0:06:22.4]} 13... Nxd4
{[%clk 0:08:11.5]} 14. axb4 {[%clk 0:06:22.4]} 14... e5 {[%clk 0:08:04.7]} 15.
c3 {[%clk 0:06:02.6]} 15... Ne6 {[%clk 0:07:54.6]} 16. Bb5 {[%clk 0:05:43.9]}
16... b6 {[%clk 0:07:26.7]} 17. Rd3 {[%clk 0:04:32.5]} 17... d6 {[%clk
0:07:23.7]} 18. Bc6 {[%clk 0:04:12.4]} 18... Bd7 {[%clk 0:06:54]} 19. Bxd7
{[%clk 0:02:16.6]} 19... Kxd7 {[%clk 0:06:54.2]} 20. Kc2 {[%clk 0:02:18.5]}
20... Be7 {[%clk 0:06:51.4]} 21. Nxb6+ {[%clk 0:02:15.7]} 21... axb6 {[%clk
0:06:53.3]} 22. Ra1 {[%clk 0:02:16.5]} 22... Rc8 {[%clk 0:06:34.8]} 23. Ra7+
{[%clk 0:02:15.8]} 23... Rc7 {[%clk 0:06:35.4]} 24. Rxc7+ {[%clk 0:02:16.6]}
24... Nxc7 {[%clk 0:06:36.7]} 25. Rd1 {[%clk 0:02:12.9]} 25... Kc6 {[%clk
0:06:36.7]} 26. Kb3 {[%clk 0:01:59.3]} 26... g6 {[%clk 0:06:29.5]} 27. g3 {[%clk
0:01:52.7]} 27... f5 {[%clk 0:06:26.1]} 28. f3 {[%clk 0:01:53.6]} 28... b5
{[%clk 0:06:15.6]} 29. c4 {[%clk 0:01:41]} 29... bxc4+ {[%clk 0:06:12]} 30. Kxc4
{[%clk 0:01:42.9]} 30... Bg5 {[%clk 0:05:44.9]} 31. Ra1 {[%clk 0:01:37]} 31...
Be3 {[%clk 0:05:44.4]} 32. g4 {[%clk 0:01:21.1]} 32... f4 {[%clk 0:05:13.1]} 33.
g5 {[%clk 0:01:14.6]} 33... Bd4 {[%clk 0:05:12.8]} 34. h4 {[%clk 0:00:57]} 34...
Bxb2 {[%clk 0:05:02.1]} 35. Rh1 {[%clk 0:00:57.5]} 35... Ne6 {[%clk 0:04:56]}
36. b5+ {[%clk 0:00:51.1]} 36... Kb6 {[%clk 0:04:52.6]} 37. Kd5 {[%clk
0:00:23.8]} 37... Nd4 {[%clk 0:04:52.8]} 38. Rh3 {[%clk 0:00:21.3]} 38... Ba3
{[%clk 0:04:51.9]} 39. h5 {[%clk 0:00:18.6]} 39... Bc5 {[%clk 0:04:25.6]} 40.
hxg6 {[%clk 0:00:17.4]} 40... hxg6 {[%clk 0:04:27.5]} 41. Rh6 {[%clk 0:00:18.7]}
41... Nxf3 {[%clk 0:04:27]} 42. Rxg6 {[%clk 0:00:19.9]} 42... Kxb5 {[%clk
0:03:35.1]} 43. Rg8 {[%clk 0:00:19.8]} 43... Nxg5 {[%clk 0:03:35.3]} 44. Rxg5
{[%clk 0:00:21.7]} 44... f3 {[%clk 0:03:36.7]} 45. Rf5 {[%clk 0:00:12.5]} 45...
f2 {[%clk 0:03:37.7]} 46. Rf3 {[%clk 0:00:13.6]} 46... Kb4 {[%clk 0:03:37.9]}
47. Ke6 {[%clk 0:00:10.3]} 47... Kc4 {[%clk 0:03:36.1]} 48. Kf6 {[%clk
0:00:06.8]} 48... Be3 {[%clk 0:03:33]} 49. Kf5 {[%clk 0:00:03.2]} 49... Kd3
{[%clk 0:03:32.5]} 50. Kg4 {[%clk 0:00:02.5]} 50... Ke2 {[%clk 0:03:32.9]} 51.
Kg3 {[%clk 0:00:02.7]} 51... f1=Q {[%clk 0:03:32.1]} 52. Rxf1 {[%clk 0:00:03.7]}
52... Kxf1 {[%clk 0:03:34]} 0-1